[Event "Live Chess"]
[Site "Chess.com"]
[Date "2024.06.01"]
[Round "-"]
[White "StoreySniper"]
[Black "Frankie_Badacsonyi"]
[Result "1/2-1/2"]
[WhiteElo "2530"]
[BlackElo "2440"]
[TimeControl "300"]
[EndTime "12:55:11 PDT"]
[Termination "Game drawn by stalemate"]

1. e4 {[%clk 0:04:57.3]} 1... c6 {[%clk 0:04:58]} 2. d3 {[%clk 0:04:51.5]} 2...
d5 {[%clk 0:04:57.3]} 3. Nd2 {[%clk 0:04:51.1]} 3... g6 {[%clk 0:04:52.4]} 4.
Ngf3 {[%clk 0:04:49.8]} 4... Bg7 {[%clk 0:04:51.1]} 5. g3 {[%clk 0:04:49.2]}
5... Bg4 {[%clk 0:04:40.1]} 6. h3 {[%clk 0:04:46.4]} 6... Bxf3 {[%clk
0:04:38.3]} 7. Qxf3 {[%clk 0:04:45.4]} 7... e6 {[%clk 0:04:37.9]} 8. Bg2 {[%clk
0:04:43.5]} 8... Ne7 {[%clk 0:04:36.5]} 9. O-O {[%clk 0:04:42.4]} 9... O-O
{[%clk 0:04:35.6]} 10. Re1 {[%clk 0:04:36.8]} 10... Nd7 {[%clk 0:04:34.4]} 11.
Nf1 {[%clk 0:04:34.2]} 11... Qb6 {[%clk 0:04:32]} 12. c3 {[%clk 0:04:31.2]}
12... Rad8 {[%clk 0:04:20.9]} 13. h4 {[%clk 0:04:28.6]} 13... h5 {[%clk
0:04:17.7]} 14. Bh3 {[%clk 0:04:08.3]} 14... Ne5 {[%clk 0:04:08.8]} 15. Qe2
{[%clk 0:04:05.2]} 15... dxe4 {[%clk 0:04:06.7]} 16. dxe4 {[%clk 0:04:04.2]}
16... Nd3 {[%clk 0:04:03.8]} 17. Be3 {[%clk 0:04:03.1]} 17... Qxb2 {[%clk
0:03:40.1]} 18. Qxb2 {[%clk 0:04:01.4]} 18... Nxb2 {[%clk 0:03:40]} 19. e5
{[%clk 0:03:17.9]} 19... Nd3 {[%clk 0:03:19.5]} 20. Reb1 {[%clk 0:03:13.6]}
20... b6 {[%clk 0:03:15.6]} 21. f4 {[%clk 0:03:12.7]} 21... Nf5 {[%clk
0:03:09.4]} 22. Bxf5 {[%clk 0:03:10.4]} 22... gxf5 {[%clk 0:03:08.4]} 23. a4
{[%clk 0:03:08.7]} 23... Rfe8 {[%clk 0:02:58.6]} 24. a5 {[%clk 0:03:06.3]} 24...
bxa5 {[%clk 0:02:55.8]} 25. Rxa5 {[%clk 0:03:03.6]} 25... Rd7 {[%clk 0:02:53.9]}
26. Bxa7 {[%clk 0:02:58.9]} 26... Bf8 {[%clk 0:02:50.2]} 27. Be3 {[%clk
0:02:51]} 27... Rd5 {[%clk 0:02:35.5]} 28. Ra6 {[%clk 0:02:45.2]} 28... Rc8
{[%clk 0:02:29.5]} 29. Rbb6 {[%clk 0:02:37.1]} 29... c5 {[%clk 0:02:19.7]} 30.
Rc6 {[%clk 0:02:35.5]} 30... Rxc6 {[%clk 0:02:16.9]} 31. Rxc6 {[%clk 0:02:34.2]}
31... Nb2 {[%clk 0:02:02.7]} 32. Rc8 {[%clk 0:02:28.7]} 32... Nc4 {[%clk
0:02:00.4]} 33. Bf2 {[%clk 0:02:24.3]} 33... Kg7 {[%clk 0:01:59.7]} 34. Ne3
{[%clk 0:02:21.9]} 34... Nxe3 {[%clk 0:01:57.3]} 35. Bxe3 {[%clk 0:02:21.3]}
35... Rd3 {[%clk 0:01:53.4]} 36. Bxc5 {[%clk 0:02:17.6]} 36... Bxc5+ {[%clk
0:01:50.8]} 37. Rxc5 {[%clk 0:02:16.7]} 37... Rxg3+ {[%clk 0:01:50.2]} 38. Kf2
{[%clk 0:02:09.4]} 38... Rh3 {[%clk 0:01:49.1]} 39. Rc8 {[%clk 0:02:04.9]} 39...
Rxh4 {[%clk 0:01:47.9]} 40. Kg3 {[%clk 0:02:02.7]} 40... Rg4+ {[%clk 0:01:46.9]}
41. Kf3 {[%clk 0:02:02.2]} 41... h4 {[%clk 0:01:46.3]} 42. Ra8 {[%clk
0:01:58.8]} 42... Rg3+ {[%clk 0:01:44.8]} 43. Kf2 {[%clk 0:01:56.7]} 43... Rxc3
{[%clk 0:01:44.7]} 44. Ra1 {[%clk 0:01:53.7]} 44... h3 {[%clk 0:01:43.8]} 45.
Rg1+ {[%clk 0:01:51.5]} 45... Kh6 {[%clk 0:01:42.4]} 46. Rg8 {[%clk 0:01:50.3]}
46... Kh5 {[%clk 0:01:39.2]} 47. Rg7 {[%clk 0:01:39.3]} 47... Kh4 {[%clk
0:01:31.1]} 48. Rg8 {[%clk 0:01:28.8]} 48... h2 {[%clk 0:01:27.5]} 49. Kg2
{[%clk 0:01:23.9]} 49... Rc2+ {[%clk 0:01:26.3]} 50. Kh1 {[%clk 0:01:23.1]}
50... Rf2 {[%clk 0:01:21.4]} 51. Rh8+ {[%clk 0:01:13.3]} 51... Kg3 {[%clk
0:01:18.9]} 52. Rh3+ {[%clk 0:01:09.2]} 52... Kxf4 {[%clk 0:01:15.9]} 53. Rh4+
{[%clk 0:01:08.2]} 53... Ke3 {[%clk 0:01:04.4]} 54. Re4+ {[%clk 0:01:06.5]}
54... Kd2 {[%clk 0:00:59.6]} 55. Rd4+ {[%clk 0:01:05]} 55... Ke1 {[%clk
0:00:56.9]} 56. Rd1+ {[%clk 0:01:00.1]} 56... Ke2 {[%clk 0:00:55.6]} 57. Rd2+
{[%clk 0:00:57.3]} 57... Kf3 {[%clk 0:00:53.6]} 58. Rd3+ {[%clk 0:00:55.8]}
58... Kf4 {[%clk 0:00:51]} 59. Rd4+ {[%clk 0:00:54]} 59... Kg5 {[%clk
0:00:45.4]} 60. Rg4+ {[%clk 0:00:51.2]} 60... Kh6 {[%clk 0:00:44.9]} 61. Rg6+
{[%clk 0:00:49.3]} 61... fxg6 {[%clk 0:00:41.9]} 1/2-1/2

[Event "Live Chess"]
[Site "Chess.com"]
[Date "2024.06.01"]
[Round "-"]
[White "Queensandpawns"]
[Black "Enhard"]
[Result "1-0"]
[WhiteElo "2382"]
[BlackElo "1427"]
[TimeControl "300"]
[EndTime "12:55:22 PDT"]
[Termination "Queensandpawns won on time"]

1. e4 {[%clk 0:04:59.6]} 1... e6 {[%clk 0:04:57.2]} 2. d4 {[%clk 0:04:58.7]}
2... d5 {[%clk 0:04:56.6]} 3. Nd2 {[%clk 0:04:58.6]} 3... Nf6 {[%clk 0:04:55]}
4. e5 {[%clk 0:04:57.2]} 4... Nfd7 {[%clk 0:04:54.5]} 5. Ne2 {[%clk 0:04:56.7]}
5... c5 {[%clk 0:04:53.8]} 6. Nf3 {[%clk 0:04:56.6]} 6... Nc6 {[%clk 0:04:52.7]}
7. c3 {[%clk 0:04:55.9]} 7... Qb6 {[%clk 0:04:50.4]} 8. Qb3 {[%clk 0:04:53.2]}
8... c4 {[%clk 0:04:46.3]} 9. Qxb6 {[%clk 0:04:51.6]} 9... Nxb6 {[%clk
0:04:45.2]} 10. Nf4 {[%clk 0:04:51.1]} 10... Be7 {[%clk 0:04:42.1]} 11. Be2
{[%clk 0:04:49.4]} 11... Bd7 {[%clk 0:04:40.7]} 12. O-O {[%clk 0:04:48.1]} 12...
h6 {[%clk 0:04:34.3]} 13. b4 {[%clk 0:04:47.3]} 13... cxb3 {[%clk 0:04:31.9]}
14. axb3 {[%clk 0:04:46.2]} 14... a6 {[%clk 0:04:31.1]} 15. c4 {[%clk
0:04:45.2]} 15... Nb4 {[%clk 0:04:22.1]} 16. c5 {[%clk 0:04:41.7]} 16... Nc2
{[%clk 0:04:18.1]} 17. Ra2 {[%clk 0:04:31.1]} 17... Nb4 {[%clk 0:04:10.7]} 18.
Ra1 {[%clk 0:04:30.1]} 18... Nc8 {[%clk 0:04:05.6]} 19. Bd2 {[%clk 0:04:27.7]}
19... Nc6 {[%clk 0:03:55.1]} 20. b4 {[%clk 0:04:27.1]} 20... N8a7 {[%clk
0:03:53.7]} 21. b5 {[%clk 0:04:25.5]} 21... axb5 {[%clk 0:03:52]} 22. Bxb5
{[%clk 0:04:25]} 22... O-O {[%clk 0:03:50.3]} 23. Bd3 {[%clk 0:04:22.5]} 23...
Bd8 {[%clk 0:03:21.7]} 24. Rab1 {[%clk 0:04:19.5]} 24... Rb8 {[%clk 0:03:08.6]}
25. h4 {[%clk 0:04:15.7]} 25... b6 {[%clk 0:03:07]} 26. Rfc1 {[%clk 0:04:10]}
26... Bc7 {[%clk 0:03:05.3]} 27. Ne2 {[%clk 0:04:08]} 27... bxc5 {[%clk
0:03:01.7]} 28. Rxb8 {[%clk 0:04:04.1]} 28... Rxb8 {[%clk 0:03:00.2]} 29. Rxc5
{[%clk 0:04:03.7]} 29... Bb6 {[%clk 0:02:51.3]} 30. Rc1 {[%clk 0:04:01.1]} 30...
Bd8 {[%clk 0:02:35.9]} 31. g4 {[%clk 0:03:57.6]} 31... Be7 {[%clk 0:02:32.3]}
32. g5 {[%clk 0:03:55.8]} 32... h5 {[%clk 0:02:28]} 33. g6 {[%clk 0:03:53.3]}
33... Rb3 {[%clk 0:01:32.2]} 34. gxf7+ {[%clk 0:03:45.4]} 34... Kxf7 {[%clk
0:01:29.8]} 35. Nf4 {[%clk 0:03:45.3]} 35... Rb2 {[%clk 0:01:18.1]} 36. Bc3
{[%clk 0:03:42]} 36... Rb3 {[%clk 0:01:12.8]} 37. Bg6+ {[%clk 0:03:37.8]} 37...
Kg8 {[%clk 0:01:08.2]} 38. Nxh5 {[%clk 0:03:35.1]} 38... Nb5 {[%clk 0:01:01]}
39. Ng5 {[%clk 0:03:12.5]} 39... Bxg5 {[%clk 0:00:58.9]} 40. hxg5 {[%clk
0:03:12.4]} 40... Nxc3 {[%clk 0:00:56.5]} 41. Ra1 {[%clk 0:03:11.4]} 41... Rb8
{[%clk 0:00:51.7]} 42. Ra6 {[%clk 0:03:05.6]} 42... Nxd4 {[%clk 0:00:42.7]} 43.
Ra7 {[%clk 0:03:04.4]} 43... Rd8 {[%clk 0:00:37.2]} 44. Bd3 {[%clk 0:02:56.3]}
44... Nf3+ {[%clk 0:00:35.1]} 45. Kg2 {[%clk 0:02:54.6]} 45... Nxe5 {[%clk
0:00:33.2]} 46. Bc2 {[%clk 0:02:54.1]} 46... Nb5 {[%clk 0:00:28.8]} 47. Rb7
{[%clk 0:02:52.5]} 47... Nd4 {[%clk 0:00:27.5]} 48. Bb1 {[%clk 0:02:51]} 48...
Nf5 {[%clk 0:00:23.6]} 49. f4 {[%clk 0:02:49.1]} 49... Nc4 {[%clk 0:00:19.8]}
50. Rc7 {[%clk 0:02:44.6]} 50... Nfe3+ {[%clk 0:00:18]} 51. Kg3 {[%clk
0:02:43.7]} 51... Nf5+ {[%clk 0:00:15.7]} 52. Kg4 {[%clk 0:02:41.9]} 52... Nfd6
{[%clk 0:00:13.7]} 53. Bg6 {[%clk 0:02:39.1]} 53... Ne3+ {[%clk 0:00:11.2]} 54.
Kf3 {[%clk 0:02:38.2]} 54... Nef5 {[%clk 0:00:09.6]} 55. Bxf5 {[%clk 0:02:37.1]}
55... Nxf5 {[%clk 0:00:09]} 56. Ra7 {[%clk 0:02:37]} 56... Nd4+ {[%clk
0:00:07.4]} 57. Kg3 {[%clk 0:02:36]} 57... Ne2+ {[%clk 0:00:06.4]} 58. Kf2
{[%clk 0:02:35.3]} 58... Nd4 {[%clk 0:00:05.7]} 59. Ng3 {[%clk 0:02:35.2]} 59...
Nf5 {[%clk 0:00:04.4]} 60. Nxf5 {[%clk 0:02:34]} 60... exf5 {[%clk 0:00:03.6]}
61. Ke3 {[%clk 0:02:33.9]} 61... g6 {[%clk 0:00:01.9]} 62. Ra6 {[%clk 0:02:33]}
62... Kg7 {[%clk 0:00:00.9]} 63. Rxg6+ {[%clk 0:02:32.9]} 1-0

[Event "Live Chess"]
[Site "Chess.com"]
[Date "2024.06.01"]
[Round "-"]
[White "chessfiction"]
[Black "DJ_Lambton"]
[Result "1-0"]
[WhiteElo "2395"]
[BlackElo "1751"]
[TimeControl "300"]
[EndTime "12:55:41 PDT"]
[Termination "chessfiction won by resignation"]

1. d4 {[%clk 0:04:56.1]} 1... d5 {[%clk 0:04:59.1]} 2. Nc3 {[%clk 0:04:56]} 2...
Nf6 {[%clk 0:04:58.3]} 3. Bf4 {[%clk 0:04:55.6]} 3... Bf5 {[%clk 0:04:57.6]} 4.
e3 {[%clk 0:04:53.7]} 4... e6 {[%clk 0:04:56.9]} 5. Nb5 {[%clk 0:04:50.6]} 5...
Na6 {[%clk 0:04:55.5]} 6. Nf3 {[%clk 0:04:49.1]} 6... c6 {[%clk 0:04:54.8]} 7.
Nc3 {[%clk 0:04:45.4]} 7... Bb4 {[%clk 0:04:53.7]} 8. a3 {[%clk 0:04:44.4]} 8...
Bxc3+ {[%clk 0:04:53]} 9. bxc3 {[%clk 0:04:44.3]} 9... O-O {[%clk 0:04:52.5]}
10. Bd3 {[%clk 0:04:43.1]} 10... Bxd3 {[%clk 0:04:50.9]} 11. cxd3 {[%clk
0:04:43]} 11... Rc8 {[%clk 0:04:50.4]} 12. O-O {[%clk 0:04:41.2]} 12... c5
{[%clk 0:04:46.7]} 13. Rb1 {[%clk 0:04:23.7]} 13... cxd4 {[%clk 0:04:42.5]} 14.
cxd4 {[%clk 0:04:19.7]} 14... b6 {[%clk 0:04:41.3]} 15. Qa4 {[%clk 0:04:16.6]}
15... Nc7 {[%clk 0:04:39.8]} 16. Qxa7 {[%clk 0:04:09.1]} 16... Rb8 {[%clk
0:04:33.7]} 17. Bxc7 {[%clk 0:04:04.9]} 1-0

[Event "Live Chess"]
[Site "Chess.com"]
[Date "2024.06.01"]
[Round "-"]
[White "CarmelJane"]
[Black "AlexanderMatlak"]
[Result "0-1"]
[WhiteElo "2076"]
[BlackElo "2486"]
[TimeControl "300"]
[EndTime "12:56:12 PDT"]
[Termination "AlexanderMatlak won by resignation"]

1. e4 {[%clk 0:04:58.3]} 1... c5 {[%clk 0:04:56.4]} 2. Nf3 {[%clk 0:04:57.4]}
2... d6 {[%clk 0:04:55.6]} 3. c3 {[%clk 0:04:56.3]} 3... Nf6 {[%clk 0:04:54.3]}
4. Be2 {[%clk 0:04:55.9]} 4... g6 {[%clk 0:04:51.2]} 5. O-O {[%clk 0:04:54.4]}
5... Bg7 {[%clk 0:04:50.6]} 6. Re1 {[%clk 0:04:53]} 6... O-O {[%clk 0:04:49.5]}
7. Bf1 {[%clk 0:04:52.6]} 7... Nc6 {[%clk 0:04:46.4]} 8. h3 {[%clk 0:04:52]}
8... Rb8 {[%clk 0:04:32.4]} 9. d4 {[%clk 0:04:47.3]} 9... Nd7 {[%clk 0:04:30.3]}
10. d5 {[%clk 0:04:19.2]} 10... Nce5 {[%clk 0:04:27.8]} 11. Nxe5 {[%clk
0:04:18.2]} 11... Nxe5 {[%clk 0:04:27.7]} 12. f4 {[%clk 0:04:08.4]} 12... Nd7
{[%clk 0:04:26.3]} 13. a4 {[%clk 0:04:02.2]} 13... b6 {[%clk 0:04:23.6]} 14. Na3
{[%clk 0:04:01]} 14... a6 {[%clk 0:04:20.5]} 15. Be3 {[%clk 0:03:46.2]} 15...
Qc7 {[%clk 0:04:16.2]} 16. Bf2 {[%clk 0:03:44.2]} 16... e6 {[%clk 0:04:06]} 17.
dxe6 {[%clk 0:03:24.9]} 17... fxe6 {[%clk 0:04:05.9]} 18. Bc4 {[%clk 0:03:23.1]}
18... Nf6 {[%clk 0:03:49.8]} 19. f5 {[%clk 0:03:16.4]} 19... gxf5 {[%clk
0:03:45.3]} 20. exf5 {[%clk 0:03:14.6]} 20... d5 {[%clk 0:03:44.5]} 21. fxe6
{[%clk 0:02:18.3]} 21... dxc4 {[%clk 0:03:41.9]} 22. Nxc4 {[%clk 0:02:15.2]}
22... Re8 {[%clk 0:03:34.7]} 23. Qf3 {[%clk 0:02:00.9]} 23... Bxe6 {[%clk
0:03:28]} 24. Bg3 {[%clk 0:01:57.1]} 24... Qa7 {[%clk 0:02:25.6]} 25. Bxb8
{[%clk 0:01:49.4]} 25... Qxb8 {[%clk 0:02:25.5]} 26. Ne3 {[%clk 0:01:30.5]}
26... Rf8 {[%clk 0:02:17.5]} 27. Qc6 {[%clk 0:01:26.7]} 27... Bc8 {[%clk
0:02:01.7]} 28. Nd5 {[%clk 0:01:22.9]} 28... Nxd5 {[%clk 0:01:48.2]} 29. Qxd5+
{[%clk 0:01:22.8]} 29... Kh8 {[%clk 0:01:47.4]} 30. Rf1 {[%clk 0:01:17.3]} 30...
Rg8 {[%clk 0:01:46.4]} 31. Rae1 {[%clk 0:01:05]} 31... Bb7 {[%clk 0:01:43.7]}
32. Qd3 {[%clk 0:00:49.6]} 32... Bd4+ {[%clk 0:01:36.6]} 0-1

[Event "Live Chess"]
[Site "Chess.com"]
[Date "2024.06.01"]
[Round "-"]
[White "yarek"]
[Black "dhairyapandyauk"]
[Result "0-1"]
[WhiteElo "1723"]
[BlackElo "1666"]
[TimeControl "300"]
[EndTime "12:56:13 PDT"]
[Termination "dhairyapandyauk won on time"]

1. e4 {[%clk 0:04:57]} 1... e5 {[%clk 0:04:59.5]} 2. d4 {[%clk 0:04:55.9]} 2...
exd4 {[%clk 0:04:57.5]} 3. Qxd4 {[%clk 0:04:55.8]} 3... Nc6 {[%clk 0:04:56.6]}
4. Qe3 {[%clk 0:04:54.1]} 4... d6 {[%clk 0:04:56]} 5. Nc3 {[%clk 0:04:53.2]}
5... Be6 {[%clk 0:04:55.6]} 6. Bd2 {[%clk 0:04:51.8]} 6... Nf6 {[%clk
0:04:55.2]} 7. O-O-O {[%clk 0:04:50.4]} 7... Qe7 {[%clk 0:04:54.4]} 8. Bb5
{[%clk 0:04:46.7]} 8... Bd7 {[%clk 0:04:50.1]} 9. Nf3 {[%clk 0:04:21.7]} 9... a6
{[%clk 0:04:48.4]} 10. Bxc6 {[%clk 0:04:16.2]} 10... Bxc6 {[%clk 0:04:47.8]} 11.
Rhe1 {[%clk 0:04:15]} 11... O-O-O {[%clk 0:04:46.3]} 12. Qa7 {[%clk 0:04:06.1]}
12... Qe6 {[%clk 0:04:41.1]} 13. Nd4 {[%clk 0:03:40.9]} 13... Qe8 {[%clk
0:04:37.3]} 14. Nd5 {[%clk 0:03:34.5]} 14... Bxd5 {[%clk 0:04:16]} 15. exd5
{[%clk 0:03:34.4]} 15... Qa4 {[%clk 0:04:12.2]} 16. Qa8+ {[%clk 0:03:11.9]}
16... Kd7 {[%clk 0:04:10.9]} 17. Qxb7 {[%clk 0:03:10.4]} 17... Be7 {[%clk
0:04:07.8]} 18. Qc6+ {[%clk 0:02:42.6]} 18... Qxc6 {[%clk 0:04:05.8]} 19. dxc6+
{[%clk 0:02:42.5]} 19... Ke8 {[%clk 0:04:03.3]} 20. Nf5 {[%clk 0:02:40.7]} 20...
Ng8 {[%clk 0:03:59.9]} 21. Bg5 {[%clk 0:02:08.7]} 21... f6 {[%clk 0:03:57.8]}
22. Nxg7+ {[%clk 0:01:59.9]} 22... Kf7 {[%clk 0:03:56.7]} 23. Ne6 {[%clk
0:01:45.2]} 23... fxg5 {[%clk 0:03:54.6]} 24. Nxd8+ {[%clk 0:01:42.8]} 24...
Bxd8 {[%clk 0:03:54.2]} 25. Rd3 {[%clk 0:01:30.8]} 25... Bf6 {[%clk 0:03:53.2]}
26. Ra3 {[%clk 0:01:22.5]} 26... Ne7 {[%clk 0:03:48.2]} 27. Rxa6 {[%clk
0:01:21.7]} 27... Rb8 {[%clk 0:03:45.4]} 28. b3 {[%clk 0:01:18.5]} 28... Be5
{[%clk 0:03:32.1]} 29. g3 {[%clk 0:01:15.6]} 29... Nd5 {[%clk 0:03:27.5]} 30. c4
{[%clk 0:01:03.9]} 30... Nb4 {[%clk 0:03:26]} 31. Rxe5 {[%clk 0:00:37.9]} 31...
dxe5 {[%clk 0:03:21.3]} 32. Ra7 {[%clk 0:00:37.1]} 32... Nxc6 {[%clk 0:03:20.1]}
33. Rxc7+ {[%clk 0:00:35.6]} 33... Ne7 {[%clk 0:03:19.4]} 34. Kc2 {[%clk
0:00:29.6]} 34... Ke6 {[%clk 0:03:18.7]} 35. b4 {[%clk 0:00:27.2]} 35... Kd6
{[%clk 0:03:17.9]} 36. Ra7 {[%clk 0:00:18.8]} 36... Rxb4 {[%clk 0:03:15.7]} 37.
c5+ {[%clk 0:00:17.2]} 37... Ke6 {[%clk 0:03:12.6]} 38. Kc3 {[%clk 0:00:14.3]}
38... Rb1 {[%clk 0:03:06]} 39. a4 {[%clk 0:00:12.4]} 39... Rc1+ {[%clk
0:03:04.5]} 40. Kb4 {[%clk 0:00:11.6]} 40... Nc6+ {[%clk 0:03:02.5]} 41. Kb5
{[%clk 0:00:10.3]} 41... Nxa7+ {[%clk 0:03:01.8]} 42. Kb6 {[%clk 0:00:08.1]}
42... Nc8+ {[%clk 0:03:00.1]} 43. Kb5 {[%clk 0:00:05.8]} 43... Kd5 {[%clk
0:02:58.3]} 44. a5 {[%clk 0:00:03.7]} 44... Rxc5+ {[%clk 0:02:57.1]} 45. Kb4
{[%clk 0:00:02]} 45... Na7 {[%clk 0:02:54.9]} 46. a6 {[%clk 0:00:00.3]} 46...
Rb5+ {[%clk 0:02:54.1]} 0-1

[Event "Live Chess"]
[Site "Chess.com"]
[Date "2024.06.01"]
[Round "-"]
[White "stevochess11"]
[Black "MagnersCarlsberg2870"]
[Result "0-1"]
[WhiteElo "1707"]
[BlackElo "1831"]
[TimeControl "300"]
[EndTime "12:56:23 PDT"]
[Termination "MagnersCarlsberg2870 won by checkmate"]

1. d4 {[%clk 0:04:58.1]} 1... Nf6 {[%clk 0:04:58.6]} 2. Nf3 {[%clk 0:04:57]}
2... d5 {[%clk 0:04:56.1]} 3. e3 {[%clk 0:04:55.7]} 3... c5 {[%clk 0:04:55.2]}
4. dxc5 {[%clk 0:04:53.1]} 4... Qa5+ {[%clk 0:04:51.6]} 5. Nbd2 {[%clk 0:04:50]}
5... Qxc5 {[%clk 0:04:50.5]} 6. c4 {[%clk 0:04:47.7]} 6... Nc6 {[%clk
0:04:48.7]} 7. b3 {[%clk 0:04:43.8]} 7... Bg4 {[%clk 0:04:44.9]} 8. Bb2 {[%clk
0:04:38.2]} 8... e5 {[%clk 0:04:41.7]} 9. h3 {[%clk 0:04:24.4]} 9... Bxf3 {[%clk
0:04:39.8]} 10. Nxf3 {[%clk 0:04:23]} 10... Bd6 {[%clk 0:04:36.4]} 11. Rc1
{[%clk 0:04:16.7]} 11... Qa5+ {[%clk 0:04:34.5]} 12. Qd2 {[%clk 0:04:14.4]}
12... Bb4 {[%clk 0:04:33.1]} 13. Bc3 {[%clk 0:04:12]} 13... Ne4 {[%clk
0:04:29.5]} 14. Bxb4 {[%clk 0:04:10]} 14... Nxb4 {[%clk 0:04:28.5]} 15. Qd1
{[%clk 0:03:37.3]} 15... Nxa2+ {[%clk 0:04:21.7]} 16. Nd2 {[%clk 0:03:34.2]}
16... Nxc1 {[%clk 0:04:07.2]} 17. Qxc1 {[%clk 0:03:31.4]} 17... dxc4 {[%clk
0:04:05.9]} 18. Bxc4 {[%clk 0:03:29.8]} 18... Rd8 {[%clk 0:04:00.1]} 19. O-O
{[%clk 0:03:04]} 19... Qxd2 {[%clk 0:03:55.5]} 20. Qa3 {[%clk 0:02:47.3]} 20...
Nd6 {[%clk 0:03:41.6]} 21. Qxa7 {[%clk 0:02:38.6]} 21... Nxc4 {[%clk 0:03:36]}
22. bxc4 {[%clk 0:02:31.2]} 22... O-O {[%clk 0:03:34.7]} 23. Qxb7 {[%clk
0:02:29.7]} 23... Rb8 {[%clk 0:03:32.4]} 24. Qe4 {[%clk 0:02:27.1]} 24... f6
{[%clk 0:03:28.2]} 25. Kh2 {[%clk 0:02:21.7]} 25... Rfc8 {[%clk 0:03:23.8]} 26.
Qf5 {[%clk 0:02:17.1]} 26... Qc3 {[%clk 0:03:07.7]} 27. Qe6+ {[%clk 0:02:05.8]}
27... Kh8 {[%clk 0:03:06.4]} 28. Rb1 {[%clk 0:02:00.2]} 28... Re8 {[%clk
0:02:55.9]} 29. Qf7 {[%clk 0:01:57.2]} 29... Qd3 {[%clk 0:02:38.7]} 30. Rb7
{[%clk 0:01:52.6]} 30... Rg8 {[%clk 0:02:34.8]} 31. Rxb8 {[%clk 0:01:40.4]}
31... Rxb8 {[%clk 0:02:33.1]} 32. c5 {[%clk 0:01:39.5]} 32... Qc3 {[%clk
0:02:20]} 33. Qc7 {[%clk 0:01:35]} 33... Qb4 {[%clk 0:02:11.1]} 34. c6 {[%clk
0:01:32.9]} 34... Qb6 {[%clk 0:02:04.7]} 35. Qd7 {[%clk 0:01:29.5]} 35... Rd8
{[%clk 0:01:56.2]} 36. Qe6 {[%clk 0:01:24.9]} 36... h6 {[%clk 0:01:50.7]} 37. h4
{[%clk 0:01:03.8]} 37... Qc7 {[%clk 0:01:49.3]} 38. Kh3 {[%clk 0:00:54.9]} 38...
Rd6 {[%clk 0:01:48]} 39. Qe8+ {[%clk 0:00:53.3]} 39... Kh7 {[%clk 0:01:46.6]}
40. h5 {[%clk 0:00:50.4]} 40... f5 {[%clk 0:01:38.4]} 41. Qxe5 {[%clk
0:00:45.1]} 41... Qxc6 {[%clk 0:01:29.2]} 42. Qxf5+ {[%clk 0:00:44]} 42... Kg8
{[%clk 0:01:27.3]} 43. g4 {[%clk 0:00:41.3]} 43... Rf6 {[%clk 0:01:22.9]} 44.
Qe5 {[%clk 0:00:36.8]} 44... Qh1+ {[%clk 0:01:18.3]} 45. Qh2 {[%clk 0:00:34.8]}
45... Qxh2+ {[%clk 0:01:16.6]} 46. Kxh2 {[%clk 0:00:34]} 46... Rxf2+ {[%clk
0:01:15.3]} 47. Kg3 {[%clk 0:00:33.9]} 47... Rf8 {[%clk 0:01:12.4]} 48. Kg2
{[%clk 0:00:31.9]} 48... Kf7 {[%clk 0:01:10.5]} 49. Kg3 {[%clk 0:00:31.8]} 49...
Ke6 {[%clk 0:01:09.8]} 50. Kg2 {[%clk 0:00:29]} 50... Kd5 {[%clk 0:01:09.1]} 51.
Kg3 {[%clk 0:00:28.9]} 51... Ke4 {[%clk 0:01:08.3]} 52. Kg2 {[%clk 0:00:28.8]}
52... Kxe3 {[%clk 0:01:07.6]} 53. Kg3 {[%clk 0:00:28.7]} 53... Rf3+ {[%clk
0:01:05.8]} 54. Kh4 {[%clk 0:00:28.6]} 54... Rf4 {[%clk 0:01:02.9]} 55. Kh3
{[%clk 0:00:27.4]} 55... Kf3 {[%clk 0:01:01.4]} 56. Kh4 {[%clk 0:00:27.3]} 56...
Rxg4+ {[%clk 0:00:59.6]} 57. Kh3 {[%clk 0:00:25.3]} 57... Rg5 {[%clk 0:00:58.7]}
58. Kh4 {[%clk 0:00:24.4]} 58... Kf4 {[%clk 0:00:55.5]} 59. Kh3 {[%clk
0:00:23.6]} 59... Rxh5+ {[%clk 0:00:54.5]} 60. Kg2 {[%clk 0:00:23.5]} 60... g5
{[%clk 0:00:53.7]} 61. Kf2 {[%clk 0:00:23.4]} 61... g4 {[%clk 0:00:53]} 62. Kf1
{[%clk 0:00:23.3]} 62... g3 {[%clk 0:00:52]} 63. Kg2 {[%clk 0:00:22.5]} 63...
Rh2+ {[%clk 0:00:50.6]} 64. Kg1 {[%clk 0:00:22.4]} 64... Kf3 {[%clk 0:00:48.3]}
65. Kf1 {[%clk 0:00:19.8]} 65... Rh1# {[%clk 0:00:47.3]} 0-1

[Event "Live Chess"]
[Site "Chess.com"]
[Date "2024.06.01"]
[Round "-"]
[White "Tushinskiy"]
[Black "Hacker_2009"]
[Result "1-0"]
[WhiteElo "2259"]
[BlackElo "2220"]
[TimeControl "300"]
[EndTime "12:56:27 PDT"]
[Termination "Tushinskiy won by resignation"]

1. d4 {[%clk 0:04:36.2]} 1... d5 {[%clk 0:04:57.5]} 2. c3 {[%clk 0:04:36.1]}
2... Nf6 {[%clk 0:04:55.1]} 3. Nf3 {[%clk 0:04:36]} 3... e6 {[%clk 0:04:54]} 4.
Bf4 {[%clk 0:04:31.8]} 4... c5 {[%clk 0:04:52]} 5. Bg3 {[%clk 0:04:31.7]} 5...
cxd4 {[%clk 0:04:49.5]} 6. cxd4 {[%clk 0:04:30]} 6... Nc6 {[%clk 0:04:48.6]} 7.
e3 {[%clk 0:04:29.3]} 7... Bb4+ {[%clk 0:04:47.6]} 8. Nbd2 {[%clk 0:04:28.5]}
8... Ne4 {[%clk 0:04:46.9]} 9. a3 {[%clk 0:04:26.8]} 9... Ba5 {[%clk 0:04:41.1]}
10. b4 {[%clk 0:04:22.1]} 10... Bc7 {[%clk 0:04:38.6]} 11. Nxe4 {[%clk
0:04:21.2]} 11... dxe4 {[%clk 0:04:36.7]} 12. Nd2 {[%clk 0:04:20.7]} 12... f5
{[%clk 0:04:32.6]} 13. Bc4 {[%clk 0:04:10.6]} 13... O-O {[%clk 0:04:27.7]} 14.
O-O {[%clk 0:04:08.1]} 14... Bxg3 {[%clk 0:04:25.4]} 15. hxg3 {[%clk 0:04:04.2]}
15... Rf6 {[%clk 0:04:19.5]} 16. Rc1 {[%clk 0:03:52.5]} 16... Rh6 {[%clk
0:04:16.7]} 17. Nb3 {[%clk 0:03:50.5]} 17... Qg5 {[%clk 0:04:13.7]} 18. d5
{[%clk 0:03:46.3]} 18... exd5 {[%clk 0:04:07.5]} 19. Bxd5+ {[%clk 0:03:46.2]}
19... Kh8 {[%clk 0:04:04.7]} 20. Bxc6 {[%clk 0:03:43.1]} 20... bxc6 {[%clk
0:04:03.4]} 21. Nc5 {[%clk 0:03:39]} 21... Be6 {[%clk 0:03:54.8]} 22. Nxe6
{[%clk 0:03:36.7]} 22... Rxe6 {[%clk 0:03:52.4]} 23. Qd7 {[%clk 0:03:35.2]}
23... Rh6 {[%clk 0:03:49.1]} 24. Rxc6 {[%clk 0:03:19.6]} 24... Rd8 {[%clk
0:03:14.8]} 25. Rc8 {[%clk 0:02:59.3]} 25... Rd6 {[%clk 0:03:07.9]} 26. Rxd8+
{[%clk 0:02:57.8]} 26... Qxd8 {[%clk 0:03:06.3]} 27. Qxd8+ {[%clk 0:02:57.1]}
27... Rxd8 {[%clk 0:03:05.1]} 28. Rc1 {[%clk 0:02:56.5]} 28... h6 {[%clk
0:02:57.6]} 29. Rc7 {[%clk 0:02:54.6]} 29... a5 {[%clk 0:02:52.7]} 30. b5 {[%clk
0:02:44.3]} 30... Rd1+ {[%clk 0:02:49.9]} 31. Kh2 {[%clk 0:02:42.3]} 31... Rb1
{[%clk 0:02:49]} 32. a4 {[%clk 0:02:41]} 32... Rb2 {[%clk 0:02:46.7]} 33. Ra7
{[%clk 0:02:37.9]} 1-0